fUST/lending_fUST_20250208
["ID","MTS","AMOUNT","RATE_DAILY","PERIOD"]
[352210453,1738998671798,-519.12,0.00011917,2]
[352210454,1738998671813,-500.0,0.00011917,2]
[352210455,1738998671828,-1000.0,0.0001196,2]
[352210456,1738998671842,-1000.0,0.00012,2]
[352210457,1738998671857,-700.000001,0.00012,2]
[352210458,1738998671872,-579.9999989,0.00012,2]
[352210459,1738998671887,-420.0,0.0001204,2]
[352210460,1738998671903,-153.530157,0.00012054,2]
[352210461,1738998671919,-151.0,0.00012054,2]
[352210462,1738998671934,-151.0,0.00012054,2]
[352210463,1738998671949,-151.0,0.00012054,2]
[352210464,1738998671964,-153.002238,0.00012054,2]
[352210465,1738998671979,-151.0,0.00012054,2]
[352210466,1738998671994,-188.372117,0.00012054,2]
[352210467,1738998672012,-274.907262,0.00012054,2]
[352210468,1738998672026,-151.0,0.00012054,2]
[352210469,1738998672038,-175.36268,0.00012054,2]
[352210470,1738998672049,-151.0,0.00012054,2]
[352210471,1738998672059,-151.0,0.00012054,2]
[352210472,1738998672070,-151.0,0.00012054,2]
[352210473,1738998672080,-318.736898,0.00012054,2]
[352210474,1738998672090,-318.736898,0.00012054,2]
[352210475,1738998672100,-151.0,0.00012054,2]
[352210476,1738998672110,-500.0,0.00012054,2]
[352210477,1738998672120,-500.0,0.00012054,2]
[352210478,1738998672130,-500.0,0.00012054,2]
[352210479,1738998672140,-545.88,0.00012054,2]
[352210480,1738998672150,-500.0,0.00012054,2]
[352210481,1738998672160,-500.0,0.00012054,2]
[352210482,1738998672170,-500.0,0.00012054,2]
[352210483,1738998672179,-500.0,0.00012054,2]
[352210484,1738998672192,-151.0,0.00012054,2]
[352210485,1738998672202,-500.0,0.00012054,2]
[352210486,1738998672212,-500.0,0.00012054,2]
[352210487,1738998672222,-151.0,0.00012054,2]
[352210488,1738998672232,-500.0,0.00012054,2]
[352210489,1738998672242,-701.06,0.00012054,2]
[352210490,1738998672251,-258.179318,0.00012054,2]
[352210491,1738998672262,-565.21,0.00012054,2]
[352210492,1738998672272,-258.179318,0.00012054,2]
[352210493,1738998672283,-588.54,0.00012054,2]
[352210494,1738998672562,-500.0,0.00012054,2]
[352210495,1738998672586,-500.0,0.00012054,2]
[352210496,1738998672602,-500.0,0.00012054,2]
[352210497,1738998672612,-519.81472222,0.00012054,2]
[352210498,1738998672622,-514.16,0.00012054,2]
[352210499,1738998672632,-155.689156,0.00012054,2]
[352210500,1738998672643,-155.689156,0.00012054,2]
[352210501,1738998672652,-500.0,0.00012054,2]
[352210502,1738998672662,-500.0,0.00012054,2]
[352210503,1738998672672,-889.61,0.00012054,2]
[352210504,1738998672681,-191.717064,0.00012054,2]
[352210505,1738998672693,-151.0,0.00012054,2]
[352210506,1738998672703,-191.717064,0.00012054,2]
[352210507,1738998672712,-151.0,0.00012054,2]
[352210508,1738998672722,-989.96,0.00012054,2]
[352210509,1738998672732,-216.220034,0.00012054,2]
[352210510,1738998672741,-216.220034,0.00012054,2]
[352210511,1738998672751,-500.0,0.00012054,2]
[352210512,1738998672761,-500.0,0.00012054,2]
[352210513,1738998672770,-650.2,0.00012054,2]
[352210514,1738998672779,-500.0,0.00012054,2]
[352210515,1738998672789,-596.97,0.00012054,2]
[352210516,1738998672799,-786.31,0.00012054,2]
[352210517,1738998672808,-500.0,0.00012054,2]
[352210518,1738998672817,-500.0,0.00012054,2]
[352210519,1738998672827,-470.55377305,0.00012054,2]
[352210520,1738998672836,-500.0,0.00012054,2]
[352210521,1738998672845,-432.08392,0.00012054,2]
[352210522,1738998672855,-432.08392,0.00012054,2]
[352210523,1738998672864,-1060.7,0.00012054,2]
[352210524,1738998672873,-500.0,0.00012054,2]
[352210525,1738998672882,-500.0,0.00012054,2]
[352210526,1738998672891,-500.0,0.00012054,2]
[352210527,1738998672901,-364.875413,0.00012054,2]
[352210528,1738998672910,-1453.12,0.00012054,2]
[352210529,1738998672920,-1481.07,0.00012054,2]
[352210530,1738998672933,-671.1,0.00012054,2]
[352210531,1738998672943,-151.0,0.00012054,2]
[352210532,1738998672952,-500.0,0.00012054,2]
[352210533,1738998672961,-3685.92,0.00012054,2]
[352210534,1738998672971,-836.94,0.00012054,2]
[352210535,1738998672980,-711.76,0.00012054,2]
[352210536,1738998672989,-500.0,0.00012054,2]
[352210537,1738998672999,-1198.7,0.00012054,2]
[352210538,1738998673008,-355.503338,0.00012054,2]
[352210539,1738998673017,-355.503338,0.00012054,2]
[352210540,1738998673027,-500.0,0.00012054,2]
[352210541,1738998673035,-763.76,0.00012054,2]
[352210542,1738998673045,-316.76,0.00012054,2]
[352210543,1738998673057,-500.0,0.00012054,2]
[352210544,1738998673067,-988.05,0.00012054,2]
[352210545,1738998673077,-500.0,0.00012054,2]
[352210546,1738998673086,-1433.84,0.00012054,2]
[352210547,1738998673095,-1643.7,0.00012054,2]
[352210548,1738998673105,-500.0,0.00012054,2]
[352210549,1738998673115,-3044.6,0.00012054,2]
[352210550,1738998673124,-168.52,0.00012054,2]
[352210551,1738998673134,-500.0,0.00012054,2]
[352210552,1738998673143,-765.74,0.00012054,2]
[352210553,1738998673153,-500.0,0.00012054,2]
[352210554,1738998673162,-715.96,0.00012054,2]
[352210555,1738998673171,-2515.96,0.00012054,2]
[352210556,1738998673180,-719.68,0.00012054,2]
[352210557,1738998673190,-500.0,0.00012054,2]
[352210558,1738998673200,-9981.38,0.00012054,2]
[352210559,1738998673209,-1315.18,0.00012054,2]
[352210560,1738998673218,-500.0,0.00012054,2]
[352210561,1738998673227,-1179.31,0.00012054,2]
[352210562,1738998673236,-660.77,0.00012054,2]
[352210563,1738998673246,-2961.48,0.00012054,2]
[352210564,1738998673255,-500.0,0.00012054,2]
[352210565,1738998673264,-1189.1,0.00012054,2]
[352210566,1738998673273,-2548.81,0.00012054,2]
[352210567,1738998673282,-48466.56,0.00012054,2]
[352210568,1738998673291,-3739.97,0.00012054,2]
[352210569,1738998673301,-500.0,0.00012054,2]
[352210570,1738998673310,-331.98,0.00012054,2]
[352210571,1738998673319,-631.77,0.00012054,2]
[352210572,1738998673328,-1998.71,0.00012054,2]
[352210573,1738998673337,-500.0,0.00012054,2]
[352210574,1738998673346,-500.0,0.00012054,2]
[352210575,1738998673356,-500.0,0.00012054,2]
[352210576,1738998673365,-1597.12,0.00012054,2]
[352210577,1738998673374,-1175.25,0.00012054,2]
[352210578,1738998673383,-14657.02,0.00012054,2]
[352210579,1738998673392,-3257.55,0.00012054,2]
[352210580,1738998673401,-500.0,0.00012054,2]
[352210581,1738998673411,-539.09187836,0.00012054,2]
[352210582,1738998673420,-500.0,0.00012054,2]
[352210583,1738998673429,-232.07334217,0.00012054,2]
[352210584,1738998673439,-1592.16,0.00012054,2]
[352210585,1738998673448,-2064.54,0.00012054,2]
[352210586,1738998673458,-981.26,0.00012054,2]
[352210587,1738998673467,-796.91,0.00012054,2]
[352210588,1738998673476,-443.759213,0.00012054,2]
[352210589,1738998673486,-1457.93,0.00012054,2]
[352210590,1738998673495,-443.759213,0.00012054,2]
[352210591,1738998673504,-507.78406996,0.00012054,2]
[352210592,1738998673514,-500.0,0.00012054,2]
[352210593,1738998673524,-180.346694,0.00012054,2]
[352210594,1738998673534,-2789.96,0.00012054,2]
[352210595,1738998673543,-6219.57,0.00012054,2]
[352210596,1738998673558,-180.346694,0.00012054,2]
[352210597,1738998673577,-803.77,0.00012054,2]
[352210598,1738998673586,-500.0,0.00012054,2]
[352210599,1738998673595,-500.0,0.00012054,2]
[352210600,1738998673604,-1091.39,0.00012054,2]
[352210601,1738998673614,-1121.44,0.00012054,2]
[352210602,1738998673623,-500.0,0.00012054,2]
[352210603,1738998673633,-1606.0,0.00012054,2]
[352210604,1738998673642,-2838.41,0.00012054,2]
[352210605,1738998673652,-500.0,0.00012054,2]
[352210606,1738998673661,-695.43,0.00012054,2]
[352210607,1738998673670,-3904.75,0.00012054,2]
[352210608,1738998673680,-500.0,0.00012054,2]
[352210609,1738998673689,-1543.63,0.00012054,2]
[352210610,1738998673698,-1147.48,0.00012054,2]
[352210611,1738998673707,-679.14,0.00012054,2]
[352210612,1738998673716,-500.0,0.00012054,2]
[352210613,1738998673725,-503.04869376,0.00012054,2]
[352210614,1738998673734,-823.63,0.00012054,2]
[352210615,1738998673743,-519.12,0.00012054,2]
[352210616,1738998673752,-500.0,0.00012191,2]
[352210617,1738998673763,-200.39661163,0.00012191,2]
[352210618,1738998673779,-150.12,0.00012191,2]
[352210619,1738998673789,-750.0,0.00012191,2]
[352210620,1738998673799,-500.0,0.00012191,2]
[352210621,1738998673809,-200.1949884,0.00012191,2]
[352210622,1738998673819,-201.83727146,0.00012191,2]
[352210623,1738998673828,-500.0,0.00012191,2]
[352210624,1738998673837,-545.88,0.00012191,2]
[352210625,1738998673847,-267.12,0.00012191,2]
[352210626,1738998673856,-500.0,0.00012191,2]
[352210627,1738998673865,-500.0,0.00012191,2]
[352210628,1738998673874,-262.206767,0.00012191,2]
[352210629,1738998673883,-500.0,0.00012191,2]
[352210630,1738998673893,-701.06,0.00012191,2]
[352210631,1738998673902,-258.179318,0.00012191,2]
[352210632,1738998673912,-565.21,0.00012191,2]
[352210633,1738998673922,-258.179318,0.00012191,2]
[352210634,1738998673931,-588.54,0.00012191,2]
[352210635,1738998673940,-500.0,0.00012191,2]
[352210636,1738998673949,-500.0,0.00012191,2]
[352210637,1738998673958,-500.0,0.00012191,2]
[352210638,1738998673968,-155.689156,0.00012191,2]
[352210639,1738998673977,-155.689156,0.00012191,2]
[352210640,1738998673986,-500.0,0.00012191,2]
[352210641,1738998673995,-889.61,0.00012191,2]
[352210642,1738998674004,-191.717064,0.00012191,2]
[352210643,1738998674013,-151.0,0.00012191,2]
[352210644,1738998674023,-191.717064,0.00012191,2]
[352210645,1738998674032,-227.967871,0.00012191,2]
[352210646,1738998674041,-989.96,0.00012191,2]
[352210647,1738998674050,-216.220034,0.00012191,2]
[352210648,1738998674059,-216.220034,0.00012191,2]
[352210649,1738998674068,-500.0,0.00012191,2]
[352210650,1738998674078,-650.2,0.00012191,2]
[352210651,1738998674087,-500.0,0.00012191,2]
[352210652,1738998674096,-596.97,0.00012191,2]
[352210653,1738998674105,-786.31,0.00012191,2]
[352210654,1738998674114,-500.0,0.00012191,2]
[352210655,1738998674124,-500.0,0.00012191,2]
[352210656,1738998674133,-500.0,0.00012191,2]
[352210657,1738998674142,-432.08392,0.00012191,2]
[352210658,1738998674151,-432.08392,0.00012191,2]
[352210659,1738998674161,-1060.7,0.00012191,2]
[352210660,1738998674170,-500.0,0.00012191,2]
[352210661,1738998674179,-500.0,0.00012191,2]
[352210662,1738998674188,-1453.12,0.00012191,2]
[352210663,1738998674198,-1481.07,0.00012191,2]
[352210664,1738998674207,-671.1,0.00012191,2]
[352210665,1738998674216,-151.0,0.00012191,2]
[352210666,1738998674226,-500.0,0.00012191,2]
[352210667,1738998674235,-3685.92,0.00012191,2]
[352210668,1738998674244,-836.94,0.00012191,2]
[352210669,1738998674254,-711.76,0.00012191,2]
[352210670,1738998674263,-1198.7,0.00012191,2]
[352210671,1738998674272,-355.503338,0.00012191,2]
[352210672,1738998674281,-355.503338,0.00012191,2]
[352210673,1738998674290,-763.76,0.00012191,2]
[352210674,1738998674300,-520.37231302,0.00012191,2]
[352210675,1738998674309,-988.05,0.00012191,2]
[352210676,1738998674318,-500.0,0.00012191,2]
[352210677,1738998674327,-1433.84,0.00012191,2]
[352210678,1738998674338,-1643.7,0.00012191,2]
[352210679,1738998674347,-500.0,0.00012191,2]
[352210680,1738998674357,-3044.6,0.00012191,2]
[352210681,1738998674367,-500.0,0.00012191,2]
[352210682,1738998674376,-765.74,0.00012191,2]
[352210683,1738998674385,-500.0,0.00012191,2]
[352210684,1738998674394,-715.96,0.00012191,2]
[352210685,1738998674404,-2515.96,0.00012191,2]
[352210686,1738998674416,-719.68,0.00012191,2]
[352210687,1738998674425,-500.0,0.00012191,2]
[352210688,1738998674435,-9981.38,0.00012191,2]
[352210689,1738998674445,-1315.18,0.00012191,2]
[352210690,1738998674454,-500.0,0.00012191,2]
[352210691,1738998674464,-1179.31,0.00012191,2]
[352210692,1738998674473,-660.77,0.00012191,2]
[352210693,1738998674482,-2961.48,0.00012191,2]
[352210694,1738998674491,-500.0,0.00012191,2]
[352210695,1738998674500,-1189.1,0.00012191,2]
[352210696,1738998674510,-2548.81,0.00012191,2]
[352210697,1738998674519,-48466.56,0.00012191,2]
[352210698,1738998674528,-3739.97,0.00012191,2]
[352210699,1738998674538,-239.09,0.00012191,2]
[352210700,1738998674547,-631.77,0.00012191,2]
[352210701,1738998674558,-1998.71,0.00012191,2]
[352210702,1738998674568,-345.91111322,0.00012191,2]
[352210703,1738998674578,-500.0,0.00012191,2]
[352210704,1738998674587,-500.0,0.00012191,2]
[352210705,1738998674597,-1597.12,0.00012191,2]
[352210706,1738998674606,-1175.25,0.00012191,2]
[352210707,1738998674615,-14657.02,0.00012191,2]
[352210708,1738998674625,-3257.55,0.00012191,2]
[352210709,1738998674635,-500.0,0.00012191,2]
[352210710,1738998674645,-500.0,0.00012191,2]
[352210711,1738998674654,-1592.16,0.00012191,2]
[352210712,1738998674663,-2064.54,0.00012191,2]
[352210713,1738998674673,-981.26,0.00012191,2]
[352210714,1738998674683,-796.91,0.00012191,2]
[352210715,1738998674692,-443.759213,0.00012191,2]
[352210716,1738998674701,-1457.93,0.00012191,2]
[352210717,1738998674711,-443.75921,0.00012191,2]
[352210718,1738998674720,-500.0,0.00012191,2]
[352210719,1738998674729,-180.346694,0.00012191,2]
[352210720,1738998674738,-2789.96,0.00012191,2]
[352210721,1738998674747,-6219.57,0.00012191,2]
[352210722,1738998674756,-180.346687,0.00012191,2]
[352210723,1738998674765,-803.77,0.00012191,2]
[352210724,1738998674775,-500.0,0.00012191,2]
[352210725,1738998674784,-449.64,0.00012191,2]
[352210726,1738998674793,-1091.39,0.00012191,2]
[352210727,1738998674802,-1121.44,0.00012191,2]
[352210728,1738998674811,-500.0,0.00012191,2]
[352210729,1738998674821,-1606.0,0.00012191,2]
[352210730,1738998674830,-2838.41,0.00012191,2]
[352210731,1738998674839,-500.0,0.00012191,2]
[352210732,1738998674849,-695.43,0.00012191,2]
[352210733,1738998674858,-3904.75,0.00012191,2]
[352210734,1738998674868,-500.0,0.00012191,2]
[352210735,1738998674877,-1543.63,0.00012191,2]
[352210736,1738998674887,-1147.48,0.00012191,2]
[352210737,1738998674896,-679.14,0.00012191,2]
[352210738,1738998674904,-214.24,0.00012191,2]
[352210739,1738998674914,-823.63,0.00012191,2]
[352210740,1738998674923,-519.12,0.00012191,2]
[352210741,1738998674932,-153.0,0.00012192,2]
[352210742,1738998674942,-153.0,0.00012192,2]
[352210743,1738998674950,-182.1381013,0.00012192,2]
[352210744,1738998674959,-158.924571,0.00012198,2]
[352210745,1738998674968,-465.04215388,0.00012227,2]
[352210746,1738998674977,-2958.33364395,0.00012286,2]
[352210765,1738999832409,-300.0,0.00010957,2]
[352210766,1738999832418,-300.94314428,0.00010957,2]
[352210767,1738999832428,-620.97055766,0.00010957,2]
[352210768,1738999832438,-503.15361163,0.00010958,2]
[352210769,1738999832447,-500.0,0.00010958,2]
[352210770,1738999832457,-500.0,0.00010958,2]
[352210771,1738999832467,-500.0,0.00010958,2]
[352210772,1738999832476,-500.0,0.00010958,2]
[352210773,1738999832486,-500.0,0.00010958,2]
[352210774,1738999832500,-500.0,0.00010958,2]
[352210775,1738999832509,-500.0,0.00010958,2]
[352210776,1738999832519,-500.0,0.00010958,2]
[352210777,1738999832528,-500.0,0.00010958,2]
[352210778,1738999832537,-572.73,0.00010958,2]
[352210779,1738999832547,-500.0,0.00010958,2]
[352210780,1738999832557,-500.0,0.00010958,2]
[352210781,1738999832567,-500.0,0.00010958,2]
[352210782,1738999832576,-500.0,0.00010958,2]
[352210783,1738999832585,-500.0,0.00010958,2]
[352210784,1738999832594,-500.0,0.00010958,2]
[352210785,1738999832603,-500.0,0.00010958,2]
[352210786,1738999832613,-500.0,0.00010958,2]
[352210787,1738999832622,-500.0,0.00010958,2]
[352210788,1738999832631,-500.0,0.00010958,2]
[352210789,1738999832640,-500.0,0.00010958,2]
[352210790,1738999832650,-500.0,0.00010958,2]
[352210791,1738999832659,-270.20366542,0.00010958,2]
[352210792,1738999832668,-500.0,0.00010958,2]
[352210793,1738999832677,-787.58,0.00010958,2]
[352210794,1738999832686,-500.0,0.00010958,2]
[352210795,1738999832697,-500.0,0.00010958,2]
[352210796,1738999832706,-1238.54,0.00010958,2]
[352210797,1738999832716,-500.0,0.00010958,2]
[352210798,1738999832726,-500.0,0.00010958,2]
[352210799,1738999832736,-500.0,0.00010958,2]
[352210800,1738999832745,-500.0,0.00010958,2]
[352210801,1738999832754,-500.0,0.00010958,2]
[352210802,1738999832763,-500.0,0.00010958,2]
[352210803,1738999832772,-500.0,0.00010958,2]
[352210804,1738999832781,-500.0,0.00010958,2]
[352210805,1738999832790,-500.0,0.00010958,2]
[352210806,1738999832800,-394.6836578,0.00010958,2]
[352210807,1738999832809,-500.0,0.00010958,2]
[352210808,1738999832819,-500.0,0.00010958,2]
[352210809,1738999832828,-500.0,0.00010958,2]
[352210810,1738999832837,-500.0,0.00010958,2]
[352210811,1738999832846,-500.0,0.00010958,2]
[352210812,1738999832855,-500.0,0.00010958,2]
[352210813,1738999832865,-500.0,0.00010958,2]
[352210814,1738999832875,-500.0,0.00010958,2]
[352210815,1738999832884,-500.0,0.00010958,2]
[352210816,1738999832893,-500.0,0.00010958,2]
[352210817,1738999832903,-500.0,0.00010958,2]
[352210818,1738999833088,-500.0,0.00010958,2]
[352210819,1738999833098,-500.0,0.00010958,2]
[352210820,1738999833107,-500.0,0.00010958,2]
[352210821,1738999833117,-951.9,0.00010958,2]
[352210822,1738999833126,-500.0,0.00010958,2]
[352210823,1738999833135,-500.0,0.00010958,2]
[352210824,1738999833145,-500.0,0.00010958,2]
[352210825,1738999833155,-500.0,0.00010958,2]
[352210826,1738999833164,-500.0,0.00010958,2]
[352210827,1738999833173,-889.27,0.00010958,2]
[352210828,1738999833182,-815.22,0.00010958,2]
[352210829,1738999833201,-500.0,0.00010958,2]
[352210830,1738999833211,-500.0,0.00010958,2]
[352210831,1738999833220,-500.0,0.00010958,2]
[352210832,1738999833230,-500.0,0.00010958,2]
[352210833,1738999833239,-500.0,0.00010958,2]
[352210834,1738999833248,-500.0,0.00010958,2]
[352210835,1738999833259,-500.0,0.00010958,2]
[352210836,1738999833268,-500.0,0.00010958,2]
[352210837,1738999833278,-649.54,0.00010958,2]
[352210838,1738999833288,-743.18,0.00010958,2]
[352210839,1738999833297,-500.0,0.00010958,2]
[352210840,1738999833307,-500.0,0.00010958,2]
[352210841,1738999833316,-500.0,0.00010958,2]
[352210842,1738999833326,-500.0,0.00010958,2]
[352210843,1738999833335,-500.0,0.00010958,2]
[352210844,1738999833345,-500.0,0.00010958,2]
[352210845,1738999833355,-500.0,0.00010958,2]
[352210846,1738999833365,-500.0,0.00010958,2]
[352210847,1738999833375,-500.0,0.00010958,2]
[352210848,1738999833384,-1497.02,0.00010958,2]
[352210849,1738999833393,-456.49618601,0.00010958,2]
[352210850,1738999833402,-500.0,0.00010958,2]
[352210851,1738999833412,-500.0,0.00010958,2]
[352210852,1738999833422,-500.0,0.00010958,2]
[352210853,1738999833431,-560.31942373,0.00010958,2]
[352210854,1738999833440,-500.0,0.00010958,2]
[352210855,1738999833449,-500.0,0.00010958,2]
[352210856,1738999833459,-500.0,0.00010958,2]
[352210857,1738999833468,-500.0,0.00010958,2]
[352210858,1738999833477,-500.0,0.00010958,2]
[352210859,1738999833487,-1513.32,0.00010958,2]
[352210860,1738999833496,-500.0,0.00010958,2]
[352210861,1738999833506,-1090.89,0.00010958,2]
[352210862,1738999833515,-500.0,0.00010958,2]
[352210863,1738999833524,-500.0,0.00010958,2]
[352210864,1738999833534,-500.0,0.00010958,2]
[352210865,1738999833543,-506.76451804,0.00010958,2]
[352210866,1738999833553,-500.0,0.00010958,2]
[352210867,1738999833562,-500.0,0.00010958,2]
[352210868,1738999833572,-500.0,0.00010958,2]
[352210869,1738999833581,-500.0,0.00010958,2]
[352210870,1738999833590,-521.61857812,0.00010958,2]
[352210871,1738999833600,-500.0,0.00010958,2]
[352210872,1738999833610,-500.0,0.00010958,2]
[352210873,1738999833619,-500.0,0.00010958,2]
[352210874,1738999833629,-500.0,0.00010958,2]
[352210875,1738999833638,-500.0,0.00010958,2]
[352210876,1738999833647,-500.0,0.00010958,2]
[352210877,1738999833656,-693.0,0.00010958,2]
[352210878,1738999833666,-500.0,0.00010958,2]
[352210879,1738999833687,-532.3232009,0.00010958,2]
[352210880,1738999833699,-500.0,0.00010958,2]
[352210881,1738999833709,-500.0,0.00010958,2]
[352210882,1738999833719,-500.0,0.00010958,2]
[352210883,1738999833731,-500.0,0.00010958,2]
[352210884,1738999833741,-500.0,0.00010958,2]
[352210885,1738999833751,-500.0,0.00010958,2]
[352210886,1738999833761,-500.0,0.00010958,2]
[352210887,1738999833772,-500.0,0.00010958,2]
[352210888,1738999833783,-500.0,0.00010958,2]
[352210889,1738999833793,-500.0,0.00010958,2]
[352210890,1738999833803,-1747.5,0.00010958,2]
[352210891,1738999833813,-500.0,0.00010958,2]
[352210892,1738999833823,-500.0,0.00010958,2]
[352210893,1738999833832,-500.0,0.00010958,2]
[352210894,1738999833843,-500.0,0.00010958,2]
[352210895,1738999833853,-500.0,0.00010958,2]
[352210896,1738999833863,-500.0,0.00010958,2]
[352210897,1738999833874,-500.0,0.00010958,2]
[352210898,1738999833884,-500.0,0.00010958,2]
[352210899,1738999833895,-500.0,0.00010958,2]
[352210900,1738999833905,-500.0,0.00010958,2]
[352210901,1738999833919,-500.0,0.00010958,2]
[352210902,1738999833929,-500.0,0.00010958,2]
[352210903,1738999833940,-1265.01,0.00010958,2]
[352210904,1738999833955,-500.0,0.00010958,2]
[352210905,1738999833965,-500.0,0.00010958,2]
[352210906,1738999833976,-500.0,0.00010958,2]
[352210907,1738999833986,-621.85,0.00010958,2]
[352210908,1738999833996,-1053.63,0.00010958,2]
[352210909,1738999834007,-500.0,0.00010958,2]
[352210910,1738999834019,-500.0,0.00010958,2]
[352210911,1738999834029,-500.0,0.00010958,2]
[352210912,1738999834039,-798.68,0.00010958,2]
[352210913,1738999834049,-500.0,0.00010958,2]
[352210914,1738999834059,-500.0,0.00010958,2]
[352210915,1738999834069,-712.89,0.00010958,2]
[352210916,1738999834079,-500.0,0.00010958,2]
[352210917,1738999834090,-536.32,0.00010958,2]
[352210918,1738999834099,-500.0,0.00010958,2]
[352210919,1738999834110,-500.0,0.00010958,2]
[352210920,1738999834120,-500.0,0.00010958,2]
[352210921,1738999834131,-759.03,0.00010958,2]
[352210922,1738999834141,-500.0,0.00010958,2]
[352210923,1738999834153,-500.0,0.00010958,2]
[352210924,1738999834170,-500.0,0.00010958,2]
[352210925,1738999834180,-500.0,0.00010958,2]
[352210926,1738999834192,-1117.37,0.00010958,2]
[352210927,1738999834203,-500.0,0.00010958,2]
[352210928,1738999834213,-3762.27,0.00010958,2]
[352210929,1738999834224,-500.0,0.00010958,2]
[352210930,1738999834235,-2379.14,0.00010958,2]
[352210931,1738999834245,-1619.3,0.00010958,2]
[352210932,1738999834255,-500.0,0.00010958,2]
[352210933,1738999834265,-500.0,0.00010958,2]
[352210934,1738999834275,-500.0,0.00010958,2]
[352210935,1738999834285,-1213.89,0.00010958,2]
[352210936,1738999834295,-668.02,0.00010958,2]
[352210937,1738999834306,-531.13447835,0.00010958,2]
[352210938,1738999834316,-17392.64,0.00010958,2]
[352210939,1738999834326,-3393.86,0.00010958,2]
[352210940,1738999834337,-500.0,0.00010958,2]
[352210941,1738999834347,-4286.13,0.00010958,2]
[352210942,1738999834356,-500.0,0.00010958,2]
[352210943,1738999834367,-500.0,0.00010958,2]
[352210944,1738999834377,-1604.86,0.00010958,2]
[352210945,1738999834387,-1243.47,0.00010958,2]
[352210946,1738999834398,-500.0,0.00010958,2]
[352210947,1738999834408,-500.0,0.00010958,2]
[352210948,1738999834418,-500.0,0.00010958,2]
[352210949,1738999834428,-3090.98,0.00010958,2]
[352210950,1738999834438,-500.0,0.00010958,2]
[352210951,1738999834449,-1307.31,0.00010958,2]
[352210952,1738999834459,-500.0,0.00010958,2]
[352210953,1738999834469,-15693.83,0.00010958,2]
[352210954,1738999834479,-500.0,0.00010958,2]
[352210955,1738999834489,-500.0,0.00010958,2]
[352210956,1738999834498,-504.1692633,0.00010958,2]
[352210957,1738999834508,-500.0,0.00010958,2]
[352210958,1738999834518,-500.0,0.00010958,2]
[352210959,1738999834528,-500.0,0.00010958,2]
[352210960,1738999834538,-500.0,0.00010958,2]
[352210961,1738999834548,-500.0,0.00010958,2]
[352210962,1738999834558,-867.44,0.00010958,2]
[352210963,1738999834568,-51875.84,0.00010958,2]
[352210964,1738999834579,-1780.05,0.00010958,2]
[352210965,1738999834590,-307.28908995,0.00010958,2]
[352210966,1738999834600,-500.0,0.00010958,2]
[352210967,1738999834610,-500.0,0.00010958,2]
[352210968,1738999834620,-1750.32,0.00010958,2]
[352210969,1738999834630,-3837.46,0.00010958,2]
[352210970,1738999834640,-2350.46,0.00010958,2]